bitfinex-derivatives/quotes_BTCF0:USTF0_20250711
["timestamp","ask_amount","ask_price","bid_price","bid_amount"]
[1752203435349,0.59986726,116550.0,116540.0,0.11502]
[1752203435552,0.59986726,116550.0,116540.0,0.2865928]
[1752203439156,0.59986726,116550.0,116540.0,0.2875928]
[1752203440863,0.59986726,116550.0,116540.0,0.8788728]
[1752203441965,0.59986726,116550.0,116540.0,0.7073]
[1752203443465,0.59986726,116550.0,116540.0,0.2875928]
[1752203443662,0.2580327,116550.0,116540.0,0.8786728]
[1752203443863,0.59986726,116550.0,116540.0,0.8786728]
[1752203444670,0.2580327,116550.0,116540.0,0.8786728]
[1752203444869,0.59986726,116550.0,116540.0,0.8786728]
[1752203445762,0.59986726,116550.0,116540.0,1.2394728]
[1752203447270,0.59986726,116550.0,116540.0,1.2390328]
[1752203447666,0.2573527,116550.0,116540.0,1.2390328]
[1752203447966,0.2144596,116550.0,116540.0,0.6483928]
[1752203448171,0.2144596,116550.0,116540.0,1.2390328]
[1752203448372,0.2573319,116560.0,116550.0,0.2233782]
[1752203448573,0.2573319,116560.0,116550.0,0.2853782]
[1752203448764,0.59916646,116560.0,116550.0,0.11382]
[1752203449070,0.59916646,116560.0,116550.0,0.77463352]
[1752203450064,0.59984646,116560.0,116550.0,0.94619252]
[1752203450264,0.59984646,116560.0,116550.0,0.35539252]
[1752203450667,0.59984646,116560.0,116550.0,0.94607252]
[1752203451874,0.60960646,116560.0,116550.0,0.94607252]
[1752203453773,0.60960646,116560.0,116550.0,0.35539252]
[1752203453972,0.60960646,116560.0,116550.0,0.94575252]
[1752203454374,0.60960646,116560.0,116550.0,0.35539252]
[1752203454575,0.60960646,116560.0,116550.0,0.94571252]
[1752203454970,0.48651277,116560.0,116550.0,0.94571252]
[1752203456077,1.66247364,116560.0,116550.0,0.12283352]
[1752203456377,0.1874337,116540.0,116530.0,0.05691]
[1752203456564,0.1874337,116540.0,116520.0,0.29997761]
[1752203456565,0.1715884,116530.0,116520.0,0.14063538]
[1752203456770,0.79968927,116530.0,116520.0,0.29432947]
[1752203456964,0.80036927,116530.0,116520.0,0.29432947]
[1752203457773,0.80893064,116530.0,116520.0,0.29432947]
[1752203458177,0.80893064,116530.0,116520.0,0.12272637]
[1752203458378,1.02767151,116530.0,116520.0,0.05862637]
[1752203458577,1.06087151,116530.0,116520.0,0.06262637]
[1752203458771,1.06087151,116530.0,116520.0,0.23422947]
[1752203458977,0.84213064,116530.0,116520.0,0.23422947]
[1752203459179,0.83356927,116530.0,116520.0,0.23422947]
[1752203460181,0.83356927,116530.0,116520.0,0.06262637]
[1752203460377,1.05231014,116530.0,116520.0,0.04077637]
[1752203460878,1.06068608,116530.0,116520.0,0.04077637]
[1752203461080,0.84194521,116530.0,116520.0,0.06262637]
[1752203461291,0.84194521,116530.0,116520.0,0.06562637]
[1752203462079,0.83356927,116530.0,116520.0,0.23722947]
[1752203462672,2.00762927,116530.0,116520.0,0.23722947]
[1752203462881,1.94172927,116530.0,116520.0,0.30272947]
[1752203465278,1.58092927,116530.0,116520.0,0.30272947]
[1752203465478,1.94172927,116530.0,116520.0,0.30272947]
[1752203465679,1.94172927,116530.0,116520.0,0.30272957]
[1752203466281,1.94172927,116530.0,116520.0,0.13112637]
[1752203466787,1.94782927,116530.0,116520.0,0.13112637]
[1752203468492,1.94782927,116530.0,116520.0,0.30272957]
[1752203469190,1.58702927,116530.0,116520.0,0.31611247]
[1752203469685,1.58092927,116530.0,116520.0,0.31611247]
[1752203471382,1.58092927,116530.0,116520.0,0.14450927]
[1752203471587,1.58702927,116530.0,116520.0,0.14450927]
[1752203471783,0.40076927,116530.0,116520.0,0.31611247]
[1752203471985,0.67417191,116550.0,116540.0,0.1934237]
[1752203472179,0.2671164,116550.0,116540.0,1.4073237]
[1752203472384,0.48585727,116550.0,116540.0,1.4711237]
[1752203472585,0.84665727,116550.0,116540.0,1.29955]
[1752203472785,0.48585727,116550.0,116540.0,1.4711237]
[1752203472987,0.48633727,116550.0,116540.0,0.8823637]
[1752203473787,0.44344447,116550.0,116540.0,1.2441637]
[1752203474196,0.44344447,116550.0,116540.0,1.2451637]
[1752203476486,0.44344447,116550.0,116540.0,0.8843637]
[1752203476879,0.43368447,116550.0,116540.0,1.2451637]
[1752203477085,0.2149436,116550.0,116540.0,1.2451637]
[1752203477384,0.43320447,116550.0,116540.0,1.2451637]
[1752203477587,0.43376448,116550.0,116540.0,1.2451637]
[1752203480490,0.43376448,116550.0,116540.0,0.8843637]
[1752203480791,0.44205448,116550.0,116540.0,0.8841237]
[1752203481695,0.44205448,116550.0,116540.0,1.2449237]
[1752203481996,0.44205448,116550.0,116540.0,0.8841237]
[1752203483597,0.44205448,116550.0,116540.0,0.8840837]
[1752203485090,0.22331361,116550.0,116540.0,1.2448837]
[1752203485284,0.44149447,116550.0,116540.0,0.6555237]
[1752203485493,1.02593534,116550.0,116540.0,0.71251]
[1752203486295,1.02593534,116550.0,116540.0,0.12315]
[1752203486495,1.02593534,116550.0,116540.0,0.12271]
[1752203486691,0.80229447,116550.0,116540.0,0.71207]
[1752203487298,0.44149447,116550.0,116540.0,0.8836437]
[1752203488003,0.44197447,116550.0,116540.0,0.8840837]
[1752203488200,0.80277447,116550.0,116540.0,0.8840837]
[1752203488502,0.44197447,116550.0,116540.0,0.8840837]
[1752203488700,0.44197447,116550.0,116540.0,0.2947237]
[1752203488900,0.44197447,116550.0,116540.0,0.8836037]
[1752203489102,0.44197447,116550.0,116540.0,0.8840437]
[1752203490302,0.80277447,116550.0,116540.0,0.8840437]
[1752203490500,0.44197447,116550.0,116540.0,0.8840437]
[1752203490800,0.44197447,116550.0,116540.0,0.71247]
[1752203491191,0.44197447,116550.0,116540.0,0.8840437]
[1752203491700,0.80277447,116550.0,116540.0,0.8840437]
[1752203494499,0.80277447,116550.0,116540.0,0.12315]
[1752203494698,0.83387447,116550.0,116540.0,0.8835637]
[1752203499709,0.80277447,116550.0,116540.0,0.8835637]
[1752203500600,0.44197447,116550.0,116540.0,0.8835637]
[1752203501209,0.44197447,116550.0,116540.0,0.90652413]
[1752203501515,0.1720517,116550.0,116540.0,1.125265]
[1752203501808,0.1715717,116550.0,116540.0,1.486065]
[1752203502407,0.39031257,116550.0,116540.0,1.26732413]
[1752203503009,0.39031257,116550.0,116540.0,1.26447772]
[1752203503010,0.39079257,116550.0,116540.0,1.26447772]
[1752203504104,0.1720517,116550.0,116540.0,1.26447772]
[1752203504299,0.1715717,116550.0,116540.0,1.26447772]
[1752203505401,0.25733,116560.0,116550.0,0.192869]
[1752203505608,0.25733,116560.0,116550.0,0.649989]
[1752203505808,0.25733,116560.0,116550.0,0.650429]
[1752203506704,0.47607087,116560.0,116550.0,0.650429]
[1752203506903,0.47607087,116560.0,116550.0,0.71818495]
[1752203506904,0.47755087,116560.0,116550.0,0.71818495]
[1752203507100,0.47755087,116560.0,116550.0,0.72693647]
[1752203507901,0.47755087,116560.0,116550.0,0.7498969]
[1752203508210,0.47755087,116560.0,116550.0,0.7508969]
[1752203508511,0.47655087,116560.0,116550.0,0.7518969]
[1752203510111,0.25781,116560.0,116550.0,0.7518969]
[1752203510411,0.47607087,116560.0,116550.0,0.7518969]
[1752203515129,0.43318257,116560.0,116550.0,0.7518969]
[1752203515533,0.43318257,116560.0,116550.0,0.74314538]
[1752203515829,0.44443257,116560.0,116550.0,0.74314538]
[1752203517224,0.44443257,116560.0,116550.0,0.76009063]
[1752203517422,0.44443257,116560.0,116550.0,0.76209063]
[1752203518528,0.44443257,116560.0,116550.0,1.35117063]
[1752203518722,0.44443257,116560.0,116550.0,1.34817063]
[1752203518922,0.44443257,116560.0,116550.0,1.35117063]
[1752203519331,0.44443257,116560.0,116550.0,1.35875725]
[1752203520731,0.44443257,116560.0,116550.0,1.35901658]
[1752203520935,0.43318257,116560.0,116550.0,1.35901658]
[1752203521121,0.43318257,116560.0,116550.0,1.57775745]
[1752203521122,0.1715557,116560.0,116550.0,1.57775745]
[1752203521318,0.3021961,116570.0,116560.0,0.2262043]
[1752203521525,0.3021961,116570.0,116560.0,0.6501043]
[1752203521926,0.53218697,116570.0,116560.0,0.6501043]
[1752203522327,0.2593103,116570.0,116560.0,0.6501043]
[1752203522527,0.47805117,116570.0,116560.0,0.6501043]
[1752203522730,0.2593103,116570.0,116560.0,0.6501043]
[1752203522929,0.2593103,116570.0,116560.0,0.6511043]
[1752203523226,0.2593103,116570.0,116560.0,0.6516243]
[1752203523227,0.2164245,116570.0,116560.0,0.6516243]
[1752203524136,0.2164245,116570.0,116560.0,0.6526243]
[1752203524734,0.2276745,116570.0,116560.0,0.6526243]
[1752203524936,0.44641537,116570.0,116560.0,0.6526243]
[1752203525136,0.44689537,116570.0,116560.0,0.6526243]
[1752203525336,0.44689537,116570.0,116560.0,0.67558473]
[1752203525734,0.44689537,116570.0,116560.0,0.14324043]
[1752203526031,0.80769537,116570.0,116560.0,0.70876]
[1752203526226,0.80769537,116570.0,116560.0,0.7092]
[1752203526637,0.83879537,116570.0,116560.0,0.1202]
[1752203526935,0.48502537,116570.0,116560.0,0.67786]
[1752203527124,0.87682537,116570.0,116560.0,0.0571]
[1752203527537,1.46618537,116570.0,116560.0,0.03497]
[1752203527736,1.46618537,116570.0,116560.0,0.03453]
[1752203527934,1.46570537,116570.0,116560.0,0.03453]
[1752203528639,1.68444624,116570.0,116560.0,1e-07]
[1752203528839,1.85602224,116570.0,116560.0,1e-07]
[1752203529640,1.63728137,116570.0,116560.0,1e-07]
[1752203529936,1.85602224,116570.0,116560.0,1e-07]
[1752203530742,1.2469645,116570.0,116560.0,1e-07]
[1752203530942,1.2469645,116570.0,116540.0,0.41634865]
[1752203530943,0.189839,116550.0,116540.0,0.41634865]
[1752203531242,1.21652074,116550.0,116540.0,0.41634865]
[1752203531442,1.28172074,116550.0,116540.0,0.41634865]
[1752203531744,1.28172074,116550.0,116540.0,0.39333]
[1752203531936,1.28172074,116550.0,116540.0,0.39633]
[1752203532239,1.32797625,116550.0,116540.0,0.39933]
[1752203532839,1.32849626,116550.0,116540.0,0.39981]
[1752203533043,1.32849626,116550.0,116540.0,0.36728]
[1752203534040,1.32849626,116550.0,116540.0,0.39981]
[1752203534842,1.28224075,116550.0,116540.0,0.39981]
[1752203535340,0.46726988,116550.0,116540.0,0.5935137]
[1752203535643,0.99154988,116550.0,116540.0,0.6263137]
[1752203535845,0.40206988,116550.0,116540.0,0.6580137]
[1752203536945,0.17207901,116550.0,116540.0,0.6580137]
[1752203537146,0.171559,116550.0,116540.0,0.6580137]
[1752203537545,0.171559,116550.0,116540.0,0.87675457]
[1752203538039,0.171559,116550.0,116540.0,1.46631457]
[1752203538547,0.89411817,116560.0,116550.0,0.193689]
[1752203538548,1.06567647,116560.0,116550.0,0.193689]
[1752203538743,1.06567647,116560.0,116550.0,0.290119]
[1752203539143,0.2144465,116560.0,116550.0,0.290119]
[1752203539747,0.2144465,116560.0,116550.0,0.292119]
[1752203540250,0.83885157,116570.0,116560.0,0.1936743]
[1752203540546,0.5772249,116570.0,116560.0,0.2901043]
[1752203540750,0.5772249,116570.0,116560.0,0.8811043]
[1752203541738,0.5772249,116570.0,116560.0,0.8821043]
[1752203543242,0.5343397,116570.0,116560.0,0.8821043]
[1752203543650,0.53485971,116570.0,116560.0,0.8825843]
[1752203544351,0.53485971,116570.0,116560.0,1.10032517]
[1752203544648,0.53485971,116570.0,116560.0,0.8835843]
[1752203545351,0.53485971,116570.0,116560.0,0.8855843]
[1752203545747,0.53485971,116570.0,116560.0,0.89423659]
[1752203545952,0.36332001,116570.0,116560.0,0.89423659]
[1752203546156,0.36332001,116570.0,116560.0,1.13598899]
[1752203546347,0.36332001,116570.0,116560.0,1.15403802]
[1752203549361,0.36332001,116570.0,116560.0,1.15359802]
[1752203549649,0.36332001,116570.0,116560.0,1.13058649]
[1752203550455,0.36332001,116570.0,116560.0,1.153554]
[1752203550750,0.36332001,116570.0,116560.0,1.30216249]
[1752203550955,0.32923001,116570.0,116560.0,1.30216249]
[1752203551353,0.32923001,116570.0,116560.0,1.08342162]
[1752203551754,0.32923001,116570.0,116560.0,1.30216249]
[1752203552150,0.50075951,116570.0,116560.0,0.49286162]
[1752203552358,0.50075951,116570.0,116560.0,1.10874527]
[1752203552555,0.32923001,116570.0,116560.0,1.32748614]
[1752203552755,0.32871,116570.0,116560.0,1.15591014]
[1752203553059,0.32871,116570.0,116560.0,1.15762592]
[1752203553359,0.32871,116570.0,116560.0,1.1572092]
[1752203554259,0.32871,116570.0,116560.0,0.93846833]
[1752203554556,0.32871,116570.0,116560.0,1.1572092]
[1752203556153,0.5002395,116570.0,116560.0,0.34554833]
[1752203556349,0.32871,116570.0,116560.0,0.93814833]
[1752203556554,0.5002395,116570.0,116560.0,0.93814833]
[1752203556853,0.5002395,116570.0,116560.0,0.92051602]
[1752203557159,0.5002395,116570.0,116560.0,1.15708629]
[1752203558360,0.5007195,116570.0,116560.0,1.15756629]
[1752203558561,0.5007195,116570.0,116560.0,1.13460264]
[1752203559563,0.5007195,116570.0,116560.0,1.15755771]
[1752203560765,0.5007195,116570.0,116560.0,1.15755822]
[1752203561063,0.32919,116570.0,116560.0,1.13460264]
[1752203561265,0.5007195,116570.0,116560.0,1.13460264]
[1752203563466,0.5007195,116570.0,116560.0,1.16526562]
[1752203564271,0.32919,116570.0,116560.0,1.16526562]
[1752203566871,0.32919,116570.0,116560.0,0.94652475]
[1752203567275,0.32919,116570.0,116560.0,1.16526562]
[1752203572978,0.32919,116570.0,116560.0,1.14743622]
[1752203573281,0.32919,116570.0,116560.0,1.16555541]
[1752203574483,0.32919,116570.0,116560.0,1.13489243]
[1752203576579,0.32919,116570.0,116560.0,1.13483301]
[1752203578579,0.32919,116570.0,116560.0,1.18082749]
[1752203585398,0.32919,116570.0,116560.0,1.13583301]
[1752203585896,0.32919,116570.0,116560.0,1.18194839]
[1752203593298,0.32919,116570.0,116560.0,1.18169969]
[1752203594500,0.32919,116570.0,116560.0,1.13558431]
[1752203594704,0.32919,116570.0,116560.0,1.18168262]
[1752203594902,0.32919,116570.0,116560.0,0.96294175]
[1752203595202,0.32919,116570.0,116560.0,1.18168304]
[1752203596804,0.32919,116570.0,116560.0,1.18176003]
[1752203598905,0.32919,116570.0,116560.0,1.40018824]
[1752203599106,0.32871,116570.0,116560.0,1.40018824]
[1752203606409,0.32871,116570.0,116560.0,1.40020139]
[1752203608510,0.32871,116570.0,116560.0,1.35408951]
[1752203609011,0.32871,116570.0,116560.0,1.40020521]
[1752203610308,0.32871,116570.0,116560.0,1.4001586]
[1752203611417,0.32871,116570.0,116560.0,1.3540429]
[1752203611617,0.32871,116570.0,116560.0,1.40016453]
[1752203612315,0.32871,116570.0,116560.0,1.3540429]
[1752203613719,0.32871,116570.0,116560.0,1.35385399]
[1752203614319,0.32871,116570.0,116560.0,0.91668491]
[1752203614616,0.32871,116570.0,116560.0,1.35376852]
[1752203618113,0.32871,116570.0,116560.0,1.35382184]
[1752203618618,0.32871,116570.0,116560.0,1.39619661]
[1752203620016,0.32871,116570.0,116560.0,0.95902753]
[1752203620216,0.32871,116570.0,116560.0,1.39619661]
[1752203620807,0.32871,116570.0,116560.0,0.80687661]
[1752203621020,0.32871,116570.0,116560.0,1.39619661]
[1752203622018,0.32871,116570.0,116560.0,0.95902753]
[1752203622220,0.32871,116570.0,116560.0,1.39619661]
[1752203624309,0.32871,116570.0,116560.0,1.34153661]
[1752203624513,0.32871,116570.0,116560.0,1.37381661]
[1752203627421,0.32871,116570.0,116560.0,1.39488661]
[1752203628024,0.32871,116570.0,116560.0,1.37381661]
[1752203628726,0.32871,116570.0,116560.0,1.32768184]
[1752203628922,0.32871,116570.0,116560.0,1.32762383]
[1752203631421,0.5210295,116570.0,116560.0,0.58782953]
[1752203631616,0.99017858,116570.0,116560.0,0.12424659]
[1752203631822,0.83499404,116570.0,116560.0,0.71304659]
[1752203632320,0.83499404,116570.0,116560.0,0.74381494]
[1752203632518,0.83499404,116570.0,116560.0,0.68009845]
[1752203632924,0.83499404,116570.0,116560.0,0.85164265]
[1752203633123,0.83551405,116570.0,116560.0,0.85212265]
[1752203633922,0.83551405,116570.0,116560.0,0.68057845]
[1752203634223,0.83551405,116570.0,116560.0,0.85212265]
[1752203634625,0.61692951,116570.0,116560.0,0.85212265]
[1752203634826,0.83551405,116570.0,116560.0,0.85212265]
[1752203635830,0.83551405,116570.0,116560.0,0.68057845]
[1752203636426,0.83551405,116570.0,116560.0,0.03794845]
[1752203636631,0.83551405,116570.0,116560.0,0.62674845]
[1752203636833,0.83551405,116570.0,116560.0,0.79881275]
[1752203638524,0.83551405,116570.0,116560.0,0.62726845]
[1752203638831,0.83551405,116570.0,116560.0,0.79881265]
[1752203639228,0.83551405,116570.0,116560.0,0.82873265]
[1752203639831,0.83551405,116570.0,116560.0,0.79797998]
[1752203640333,0.83551405,116570.0,116560.0,0.03027993]
[1752203640531,0.83551405,116570.0,116560.0,0.61907993]
[1752203640832,1.05409859,116570.0,116560.0,0.20130423]
[1752203641032,1.05409859,116570.0,116560.0,0.61907993]
[1752203641429,1.05409859,116570.0,116560.0,0.79062423]
[1752203642032,1.05409859,116570.0,116560.0,0.20130423]
[1752203642232,0.83551405,116570.0,116560.0,0.61907993]
[1752203643135,1.05409859,116570.0,116560.0,0.02975993]
[1752203643536,0.83551405,116570.0,116560.0,0.61907993]
[1752203643733,1.05409859,116570.0,116560.0,0.61907993]
[1752203644830,1.05409859,116570.0,116560.0,0.59603578]
[1752203645339,1.81499459,116570.0,116560.0,0.00671578]
[1752203647637,1.37782551,116570.0,116560.0,0.00671578]
[1752203647839,1.81499459,116570.0,116560.0,0.00671578]
[1752203655745,1.64341859,116570.0,116560.0,0.00671578]
[1752203659545,1.64341859,116570.0,116560.0,0.03951578]
[1752203661550,1.36143405,116570.0,116560.0,0.26075998]
[1752203661744,1.36143405,116570.0,116560.0,0.29245998]
[1752203663457,1.36143405,116570.0,116560.0,0.51104452]
[1752203663968,1.36143405,116570.0,116560.0,0.29245998]
[1752203664368,1.36143405,116570.0,116560.0,0.3154751]
[1752203664668,1.36143405,116570.0,116560.0,0.29245998]
[1752203666069,1.36143405,116570.0,116560.0,0.3154751]
[1752203668568,1.36143405,116570.0,116560.0,0.29245998]
[1752203669971,0.77211405,116570.0,116560.0,0.29245998]
[1752203670472,1.36139405,116570.0,116560.0,0.29245998]
[1752203673368,1.36139405,116570.0,116560.0,0.12091578]
[1752203673574,1.36139405,116570.0,116560.0,0.29245998]
[1752203678576,1.36139405,116570.0,116560.0,0.3154751]
[1752203688480,1.36139405,116570.0,116560.0,0.1439309]
[1752203688686,1.36139405,116570.0,116560.0,0.3154751]
[1752203689187,1.57997859,116570.0,116560.0,0.3154751]
[1752203689685,1.36139405,116570.0,116560.0,0.3154751]
[1752203690287,1.57997859,116570.0,116560.0,0.3154751]
[1752203694991,1.14280951,116570.0,116560.0,0.3154751]
[1752203695192,1.57997859,116570.0,116560.0,0.3154751]
[1752203695690,1.57997859,116570.0,116560.0,0.29245998]
[1752203695990,1.61277859,116570.0,116560.0,0.31554778]
[1752203697993,1.61277859,116570.0,116560.0,0.02980358]
[1752203698384,1.64357859,116570.0,116560.0,0.02980358]
[1752203701302,1.64357859,116570.0,116560.0,0.0297942]
[1752203702399,1.64357859,116570.0,116560.0,0.2013385]
[1752203702792,1.64357859,116570.0,116560.0,0.0297942]
[1752203703094,0.1847043,116560.0,116550.0,0.06846755]
[1752203703301,0.1847043,116560.0,116540.0,0.39155267]
[1752203703302,0.184719,116550.0,116540.0,0.39155267]
[1752203703496,2.08159262,116550.0,116540.0,0.39917638]
[1752203703803,2.08159262,116550.0,116540.0,0.36842371]
[1752203704198,2.08159262,116550.0,116540.0,0.35566]
[1752203706197,2.08159262,116550.0,116540.0,0.3683986]
[1752203707306,2.08159262,116550.0,116540.0,0.3693986]
[1752203707901,2.08159262,116550.0,116540.0,0.3683986]
[1752203708100,2.08207262,116550.0,116540.0,0.3683986]
[1752203708396,2.08207262,116550.0,116540.0,0.3693986]
[1752203708598,2.12832813,116550.0,116540.0,0.35666]
[1752203708798,2.29993613,116550.0,116540.0,0.35666]
[1752203709002,2.29993613,116550.0,116540.0,0.3694013]
[1752203709204,2.29993613,116550.0,116540.0,0.35666]
[1752203709903,0.1715737,116540.0,116530.0,0.3608]
[1752203710108,0.89192732,116540.0,116530.0,0.3608]
[1752203710301,0.89240732,116540.0,116530.0,0.37354612]
[1752203710607,0.89240732,116540.0,116530.0,0.37402612]
[1752203711006,0.89240732,116540.0,116530.0,0.37902612]
[1752203711398,1.06403132,116540.0,116530.0,0.36628]
[1752203711603,1.28261586,116540.0,116530.0,0.36628]
[1752203711803,1.06403132,116540.0,116530.0,0.36628]
[1752203714915,0.62717003,116540.0,116530.0,0.36628]
[1752203715613,0.45554603,116540.0,116530.0,0.36628]
[1752203715812,0.62717003,116540.0,116530.0,0.36628]
[1752203716010,0.45554603,116540.0,116530.0,0.5378684]
[1752203716309,0.45554603,116540.0,116530.0,0.36628]
[1752203717713,0.67443836,116540.0,116530.0,0.36628]
[1752203717908,0.1716032,116520.0,116510.0,0.03124]
[1752203718109,0.3003373,116510.0,116500.0,0.06154]
[1752203718312,0.80212196,116510.0,116500.0,0.0303]
[1752203718614,0.1716322,116500.0,116490.0,0.06254]
[1752203718806,1.78773686,116500.0,116490.0,0.09354]
[1752203719008,1.56948453,116500.0,116490.0,0.09354]
[1752203719209,1.56948453,116500.0,116490.0,0.11333]
[1752203720211,1.57048453,116500.0,116490.0,0.11333]
[1752203720611,1.57148453,116500.0,116490.0,0.284977]
[1752203722312,1.58342453,116500.0,116490.0,0.284977]
[1752203722615,1.58342453,116500.0,116490.0,0.11333]
[1752203723214,1.58342453,116500.0,116490.0,0.284977]
[1752203723418,1.3525922,116500.0,116490.0,0.284977]
[1752203723616,0.7634722,116500.0,116490.0,0.50386933]
[1752203724119,0.1742722,116500.0,116490.0,0.50386933]
[1752203724314,0.1736322,116500.0,116490.0,0.50386933]
[1752203725120,0.1736322,116500.0,116490.0,0.284977]
[1752203725312,0.1736322,116500.0,116490.0,0.50386933]
[1752203727119,0.1736322,116500.0,116490.0,0.284977]
[1752203728412,0.002,116500.0,116490.0,0.50386933]
[1752203728612,0.1736323,116500.0,116490.0,0.50386933]
[1752203729018,0.1736323,116500.0,116490.0,0.284977]
[1752203729321,0.1736323,116500.0,116490.0,0.50386933]
[1752203733418,0.1736323,116500.0,116490.0,0.50393275]
[1752203733818,0.1736323,116500.0,116490.0,0.28504042]
[1752203734422,0.1923923,116500.0,116490.0,0.28504042]
[1752203734824,0.41128463,116500.0,116490.0,0.11339342]
[1752203735030,0.41192463,116500.0,116490.0,0.11339342]
[1752203735227,0.42365463,116500.0,116490.0,0.11339342]
[1752203736329,1.60209463,116500.0,116490.0,0.11339342]
[1752203740535,1.63259463,116500.0,116490.0,0.11339342]
[1752203740938,1.63259463,116500.0,116490.0,0.08209342]
[1752203741240,1.63259463,116500.0,116490.0,6.342e-05]
[1752203741537,1.66549463,116500.0,116490.0,0.03708342]
[1752203743130,1.66549463,116500.0,116490.0,6.342e-05]
[1752203744331,1.66549463,116500.0,116490.0,0.26532042]
[1752203744541,1.63259463,116500.0,116490.0,0.26532042]
[1752203744843,1.63259463,116500.0,116490.0,0.29622042]
[1752203745044,1.63259463,116500.0,116490.0,0.12457342]
[1752203745236,1.63259463,116500.0,116490.0,0.29622042]
[1752203746242,1.63259463,116500.0,116490.0,0.12457342]
[1752203749545,1.63259463,116500.0,116490.0,0.09367342]
[1752203749546,1.66539463,116500.0,116490.0,0.09367342]
[1752203757046,1.66539463,116500.0,116490.0,0.12477342]
[1752203762148,2.38699463,116500.0,116490.0,0.12477342]
[1752203762949,0.743,116500.0,116490.0,0.55662726]
[1752203763150,0.8958719,116500.0,116490.0,0.55662154]
[1752203764051,0.5350719,116500.0,116490.0,0.55662154]
[1752203764242,0.5350719,116500.0,116490.0,0.56428595]
[1752203764445,0.36344,116500.0,116490.0,0.78317828]
[1752203764644,0.00264,116500.0,116490.0,0.95485828]
[1752203764841,0.3608,116510.0,116500.0,0.1951119]
[1752203765054,0.5330572,116510.0,116500.0,0.5119869]
[1752203765249,0.36144,116510.0,116500.0,0.53506404]
[1752203765457,0.00064,116510.0,116500.0,0.68365089]
[1752203765653,0.5753169,116520.0,116510.0,0.2310272]
[1752203765953,0.5759569,116520.0,116510.0,0.51270278]
[1752203766452,0.5330545,116520.0,116510.0,0.29381045]
[1752203766654,0.5330545,116520.0,116510.0,0.51270278]
[1752203766853,0.5330545,116520.0,116510.0,0.29381045]
[1752203767053,0.5380545,116520.0,116510.0,0.29381045]
[1752203767250,0.77399683,116520.0,116510.0,0.28540202]
[1752203767455,0.5551045,116520.0,116510.0,0.28540202]
[1752203767657,0.77399683,116520.0,116510.0,0.28540202]
[1752203767857,0.77699683,116520.0,116510.0,0.28540202]
[1752203768156,0.5581045,116520.0,116510.0,0.31560202]
[1752203768653,0.5561045,116520.0,116510.0,0.31560202]
[1752203769048,0.5531045,116520.0,116510.0,0.31560202]
[1752203769451,0.5360545,116520.0,116510.0,0.31560202]
[1752203769650,0.5360545,116520.0,116510.0,0.51141953]
[1752203769850,0.5360545,116520.0,116510.0,0.52483414]
[1752203771254,0.5360545,116520.0,116510.0,0.54785453]
[1752203771651,0.36444,116520.0,116510.0,0.54785453]
[1752203771855,0.36444,116520.0,116510.0,0.55558681]
[1752203772056,0.36444,116520.0,116510.0,0.54785248]
[1752203772756,0.00364,116520.0,116510.0,0.54785248]
[1752203773054,0.003,116520.0,116510.0,0.57860515]
[1752203773250,0.003,116520.0,116510.0,0.54785248]
[1752203773655,0.001,116520.0,116510.0,0.55558681]
[1752203773856,0.002,116520.0,116510.0,0.55558681]
[1752203774053,0.002,116520.0,116510.0,0.7138202]
[1752203774254,0.002,116520.0,116510.0,0.72723321]
[1752203776059,0.002,116520.0,116510.0,1.08803321]
[1752203776454,0.3628,116530.0,116520.0,0.1950825]
[1752203776656,0.36344,116530.0,116520.0,1.35571278]
[1752203776957,0.00264,116530.0,116520.0,1.52735278]
[1752203777157,0.002,116530.0,116520.0,1.52735278]
[1752203777352,0.002,116530.0,116520.0,1.78512284]
[1752203777757,0.004,116530.0,116520.0,2.14592284]
[1752203778055,0.004,116530.0,116520.0,1.70813818]
[1752203778253,0.004,116530.0,116520.0,2.14592284]
[1752203778858,0.004,116530.0,116520.0,2.13250983]
[1752203780158,0.004,116530.0,116520.0,1.88250983]
[1752203780355,0.002,116530.0,116520.0,1.88250983]
[1752203781458,0.004,116530.0,116520.0,1.88250983]
[1752203782061,0.002,116530.0,116520.0,1.88450983]
[1752203791268,0.002,116530.0,116520.0,1.85375716]
[1752203793269,0.002,116530.0,116520.0,1.89989559]
[1752203794659,0.002,116530.0,116520.0,1.72825559]
[1752203794971,0.002,116530.0,116520.0,1.74585824]
[1752203798476,0.002,116530.0,116520.0,1.7458509]
[1752203798768,0.002,116530.0,116520.0,1.1569309]
[1752203798969,0.77101003,116530.0,116520.0,0.18732919]
[1752203799165,0.77165003,116530.0,116520.0,0.86218551]
[1752203799363,0.83465003,116530.0,116520.0,0.86218551]
[1752203799567,0.6157577,116530.0,116520.0,0.27362551]
[1752203799777,0.84573003,116530.0,116520.0,0.10202311]
[1752203799968,0.84573003,116530.0,116520.0,0.002]
[1752203800367,0.8540827,116530.0,116520.0,0.002]
[1752203800565,0.84573003,116530.0,116520.0,0.0365]
[1752203801171,0.84573003,116530.0,116520.0,0.05868]
[1752203802377,0.84573003,116530.0,116520.0,0.0816978]
[1752203803783,0.6268377,116530.0,116520.0,0.0816978]
[1752203804576,0.84573003,116530.0,116520.0,0.0806978]
[1752203804880,0.84773003,116530.0,116520.0,0.0806978]
[1752203805575,0.84773003,116530.0,116520.0,0.0796978]
[1752203805781,0.84873003,116530.0,116520.0,0.0796978]
[1752203807178,0.84873003,116530.0,116520.0,0.2513003]
[1752203807381,0.6298377,116530.0,116520.0,0.2282825]
[1752203807581,0.6298377,116530.0,116520.0,0.47019263]
[1752203807881,0.6187577,116530.0,116520.0,0.47019263]
[1752203808079,0.6298377,116530.0,116520.0,0.47019263]
[1752203810280,0.6187577,116530.0,116520.0,0.47019263]
[1752203810681,0.6298377,116530.0,116520.0,0.47019263]
[1752203810870,0.6298377,116530.0,116520.0,0.0796978]
[1752203811072,0.84873003,116530.0,116520.0,0.0796978]
[1752203813079,0.84873003,116530.0,116520.0,0.2513002]
[1752203813280,0.84873003,116530.0,116520.0,0.0796978]
[1752203814592,0.6298377,116530.0,116520.0,0.0796978]
[1752203814793,0.6298377,116530.0,116520.0,0.0575178]
[1752203815098,0.1716024,116520.0,116510.0,0.07521012]
[1752203815399,0.83994473,116520.0,116510.0,0.07521012]
[1752203816399,0.84094473,116520.0,116510.0,0.07521012]
[1752203816996,0.84094473,116520.0,116510.0,0.01822232]
[1752203817397,0.84094473,116520.0,116500.0,0.97473731]
[1752203817398,0.1879572,116510.0,116500.0,0.97473731]
[1752203817594,0.6212672,116510.0,116500.0,0.97473731]
[1752203817792,0.6212672,116510.0,116500.0,0.9833459]
[1752203817993,0.6212672,116510.0,116500.0,0.9904281]
[1752203818400,0.6212672,116510.0,116500.0,1.20932043]
[1752203818598,0.6212672,116510.0,116500.0,1.23486581]
[1752203818895,0.6212672,116510.0,116500.0,1.19195791]
[1752203819289,0.5794572,116510.0,116500.0,1.19195791]